Cogmind - Beta 10.2 @@@ ROGUE MODE // 2021.05.16 @ 01:44:53 Player: mat Result: Destroyed by Y-72 Warden with Quantum Rifle Performance ------------- Evolutions (8) 4000 Regions Visited (19) 3800 Robots Destroyed (2) 10 Value Destroyed (50) 50 Prototype IDs (20) 400 Alien Tech Used (1) 200 Bonus (3600) 3600 TOTAL SCORE: 12060 Bonus ------- Triggered Max Security 1000 Aligned with FarCom 300 Met Zhirov 300 Acquired SGEMP 2000 Cogmind --------- Core Integrity 0/1450 Matter 290/300 Energy 99/100 System Corruption 8% Temperature Cool (9) Movement Core (50) Location -2/Research Parts ------- > --- POWER (4) -------- (None) > --- PROPULSION (11) -- (None) > --- UTILITY (6) ------ Enhanced Optical Array Improved Signal Interpreter Advanced Signal Interpreter > --- WEAPON (2) ------- (None) > --- INVENTORY (4) ---- Advanced Hacking Suite SGEMP Prototype Peak State ------------ > --- POWER ------------ Cold Fusion Reactor Cold Fusion Reactor Neutrino Core Particle Reactor > --- PROPULSION ------- Field Propulsion Drive Cooled Nuclear Pulse Thruster Cooled Nuclear Pulse Thruster Cooled Nuclear Pulse Thruster Q-thruster Electron Diverter Impulse Thruster Array > --- UTILITY ---------- Gravity Neutralizing Apparatus Enhanced Optical Array Improved Signal Interpreter Advanced Signal Interpreter Advanced System Shield > --- WEAPON ----------- (None) > --- INVENTORY -------- Enhanced Fission Core Transdimensional Reconstructor SGEMP Prototype [Rating: 111] Favorites ----------- Power Cold Fusion Reactor Engine Light Ion Engine Power Core Enhanced Fission Core Reactor Cold Fusion Reactor Propulsion Cooled Nuclear Pulse Thruster Wheel Compact Wheel Flight Unit Cooled Nuclear Pulse Thruster Utility System Shield Device Improved Terrain Scanner Storage Small Storage Unit Processor Improved Signal Interpreter Hackware System Shield Weapon Light Assault Rifle Ballistic Gun Light Assault Rifle Launcher Advanced EMP Blaster Build | -11 -10 -10 -10 -9 -8 -8 -8 -6 -6 -6 -5 -4 -4 -4 -4 -3 -3 -3 -2 ------- Run | Scr Mat Min Exi Min Mat Sto Rec Fac Low Low Fac Fac Upp Upp Zhi Pro Res Tes Res Slots Evolved 16 | . . . . . 4 . . 4 . . 2 2 . . . . 2 . 2 Power 3 | . . . . . 1 . . . . . 1 . . . . . 1 . . Propulsion 9 | . . . . . 2 . . 2 . . 1 2 . . . . 1 . 1 Utility 4 | . . . . . 1 . . 2 . . . . . . . . . . 1 Weapon . | . . . . . . . . . . . . . . . . . . . . Parts Attached 48 | 7 1 3 1 1 . 4 3 2 . 1 10 . . 1 5 . 3 4 2 Power 12 | 2 . 1 . . . 1 1 . . . 2 . . 1 1 . 1 2 . Engine 4 | 2 . 1 . . . . . . . . 1 . . . . . . . . Core 2 | . . . . . . . . . . . . . . . . . 1 1 . Reactor 6 | . . . . . . 1 1 . . . 1 . . 1 1 . . 1 . Propulsion 20 | 2 . 2 . 1 . 3 1 . . . 4 . . . 3 . 2 1 1 Treads . | . . . . . . . . . . . . . . . . . . . . Leg . | . . . . . . . . . . . . . . . . . . . . Wheel 2 | 2 . . . . . . . . . . . . . . . . . . . Hover . | . . . . . . . . . . . . . . . . . . . . Flight 18 | . . 2 . 1 . 3 1 . . . 4 . . . 3 . 2 1 1 Utility 13 | 1 1 . 1 . . . 1 1 . 1 4 . . . 1 . . 1 1 Device 4 | . 1 . . . . . . . . . 2 . . . . . . . 1 Storage 1 | 1 . . . . . . . . . . . . . . . . . . . Processor 4 | . . . 1 . . . . . . . 2 . . . . . . 1 . Hackware 4 | . . . . . . . 1 1 . 1 . . . . 1 . . . . Protection . | . . . . . . . . . . . . . . . . . . . . Artifact . | . . . . . . . . . . . . . . . . . . . . Weapon 3 | 2 . . . . . . . 1 . . . . . . . . . . . Energy Gun . | . . . . . . . . . . . . . . . . . . . . Energy Cannon . | . . . . . . . . . . . . . . . . . . . . Ballistic Gun 2 | 2 . . . . . . . . . . . . . . . . . . . Ballistic Cannon . | . . . . . . . . . . . . . . . . . . . . Launcher 1 | . . . . . . . . 1 . . . . . . . . . . . Special Weapon . | . . . . . . . . . . . . . . . . . . . . Impact Weapon . | . . . . . . . . . . . . . . . . . . . . Slashing Weapon . | . . . . . . . . . . . . . . . . . . . . Piercing Weapon . | . . . . . . . . . . . . . . . . . . . . Special Melee Weapon . | . . . . . . . . . . . . . . . . . . . . Unidentified Prototypes 10 | . . . 1 . . 1 . 1 . . 2 . . . 1 . . 2 2 Parts Lost 34 | . . . . 1 4 . . 4 3 . . . 1 3 . 1 2 7 8 Power 7 | . . . . . 1 . . . . . . . . 1 . . 1 4 . Propulsion 18 | . . . . 1 2 . . 4 . . . . . 2 . 1 . 2 6 Utility 8 | . . . . . . . . . 3 . . . 1 . . . 1 1 2 Weapon 1 | . . . . . 1 . . . . . . . . . . . . . . Highest Loss Streak 7 | . . . . 1 4 . . 4 2 . . . 1 3 . 1 1 7 5 Average Slot Usage (%) 57 | . 94 98 88 100 61 43 65 37 11 6 36 57 57 45 48 66 61 68 33 Engine 4 | . 14 14 14 14 8 . . . . . 4 5 5 1 . . . . . Reactor 4 | . . . . . . 9 17 7 . . 1 5 5 7 10 15 11 11 . Wheel 3 | . 28 26 . . . . . . . . . . . . . . . . . Flight 16 | . . 1 28 28 17 25 35 14 . . 13 21 21 15 14 24 23 32 13 Device 5 | . 9 14 14 14 8 . . . . . 2 10 10 5 5 5 4 3 1 Storage 1 | . 14 13 . . . . . . . . . . . . . . . . . Processor 7 | . . . 3 14 9 9 9 6 . . 6 10 10 10 10 10 9 10 13 Hackware 3 | . . . . . . . 4 7 11 6 5 5 5 5 5 10 8 4 2 Ballistic Gun 8 | . 28 28 28 28 17 . . . . . . . . . . . . . . Naked Turns 9 | . . . . . . . . . 7 2 . . . . . . . . . Heaviest Build 56 | 12 13 13 7 7 7 12 24 30 . . 24 24 24 24 36 36 50 56 17 Greatest Support 99 | 26 26 26 8 8 8 21 26 26 3 3 59 59 59 59 57 57 86 99 67 Greatest Overweight (x) 3 | . . 3 . . 1 . . 1 . . . . . . . . . . . Average Overweight (x) . | . . . . . . . . . . . . . . . . . . . . Largest Inventory Capacity 6 | 6 6 6 4 4 4 4 4 4 4 4 4 4 4 4 4 4 4 4 4 Average Capacity 4 | 4 6 5 4 4 4 4 4 4 4 4 4 4 4 4 4 4 4 4 4 Most Carried 6 | 4 2 6 4 4 4 4 4 4 4 4 4 4 4 4 4 3 4 4 4 Average Carried 3 | 1 1 4 3 3 3 3 3 3 4 4 3 4 4 3 3 3 3 3 3 Final Capacity 6 | 6 6 4 4 4 4 4 4 4 4 4 4 4 4 4 4 4 4 4 4 Final Carried 4 | 1 1 4 4 3 4 4 3 4 4 4 4 4 4 3 3 3 3 3 3 Class Distribution -------------------- 40% | Mutant 24% | Sprinter 17% | Scout 9% | Hacker-Sprinter 4% | Hacker-Mutant 3% | Generator-Sprinter Dominant Class ---------------- Mutant | -10/Materials Mutant | -10/Mines Mutant | -10/Exiles Scout | -9/Mines Scout | -8/Materials Mutant | -8/Storage Sprinter | -8/Recycling Sprinter | -6/Factory Hacker-Mutant | -6/Lower Caves Hacker-Mutant | -6/Lower Caves Mutant | -5/Factory Sprinter | -4/Factory Sprinter | -4/Upper Caves Mutant | -4/Upper Caves Mutant | -4/Zhirov Hacker-Sprinter | -3/Proximity Caves Hacker-Sprinter | -3/Research Generator-Sprinter | -3/Testing Sprinter | -2/Research Resources | -11 -10 -10 -10 -9 -8 -8 -8 -6 -6 -6 -5 -4 -4 -4 -4 -3 -3 -3 -2 ----------- Run | Scr Mat Min Exi Min Mat Sto Rec Fac Low Low Fac Fac Upp Upp Zhi Pro Res Tes Res Matter Collected 593 | 203 . 24 . 93 . . 76 . . 10 13 . 17 . . 31 . 104 22 Remotely . | . . . . . . . . . . . . . . . . . . . . Salvage Created 33 | . . 33 . . . . . . . . . . . . . . . . . Parts 2 | . . 2 . . . . . . . . . . . . . . . . . Haulers Intercepted . | . . . . . . . . . . . . . . . . . . . . Recyclers Shooed 1 | . . . . . 1 . . . . . . . . . . . . . . Parts Field Recycled . | . . . . . . . . . . . . . . . . . . . . Retrieved Matter . | . . . . . . . . . . . . . . . . . . . . Parts Self-Destructed . | . . . . . . . . . . . . . . . . . . . . Prevented . | . . . . . . . . . . . . . . . . . . . . Kills | -11 -10 -10 -10 -9 -8 -8 -8 -6 -6 -6 -5 -4 -4 -4 -4 -3 -3 -3 -2 ------- Run | Scr Mat Min Exi Min Mat Sto Rec Fac Low Low Fac Fac Upp Upp Zhi Pro Res Tes Res Combat Hostiles Destroyed 2 | . . 2 . . . . . . . . . . . . . . . . . Guns 2 | . . 2 . . . . . . . . . . . . . . . . . Classes Destroyed 1 | . . 1 . . . . . . . . . . . . . . . . . Swarmer 2 | . . 2 . . . . . . . . . . . . . . . . . Best Kill Streak 2 | . . 2 . . . . . . . . . . . . . . . . . Combat Bots Only 2 | . . 2 . . . . . . . . . . . . . . . . . Max Kills in Single Turn 1 | . . 1 . . . . . . . . . . . . . . . . . Gunslinging . | . . . . . . . . . . . . . . . . . . . . Exploded . | . . . . . . . . . . . . . . . . . . . . Melee . | . . . . . . . . . . . . . . . . . . . . Uniques/NPCs Destroyed . | . . . . . . . . . . . . . . . . . . . . Combat | -11 -10 -10 -10 -9 -8 -8 -8 -6 -6 -6 -5 -4 -4 -4 -4 -3 -3 -3 -2 -------- Run | Scr Mat Min Exi Min Mat Sto Rec Fac Low Low Fac Fac Upp Upp Zhi Pro Res Tes Res Damage Taken 5055 | . 21 43 . 209 437 114 . 320 227 . 74 . 227 239 . 86 233 967 1858 Core 2678 | . 21 9 . 57 288 56 . 197 203 . 23 . 62 58 . 24 67 164 1449 Absorbed by Shields . | . . . . . . . . . . . . . . . . . . . . Core Remaining (%) 74 | 100 . . . 65 . . 37 . . 52 97 . . . . 87 . 82 . Volleys Fired 11 | . . 5 . . 1 . . 5 . . . . . . . . . . . Largest 2 | . . 2 . . 1 . . 1 . . . . . . . . . . . Hottest 40 | . . 40 . . 20 . . 36 . . . . . . . . . . . Shots Fired 16 | . . 10 . . 1 . . 5 . . . . . . . . . . . Gun 11 | . . 10 . . 1 . . . . . . . . . . . . . . Cannon . | . . . . . . . . . . . . . . . . . . . . Launcher 5 | . . . . . . . . 5 . . . . . . . . . . . Special . | . . . . . . . . . . . . . . . . . . . . Kinetic 11 | . . 10 . . 1 . . . . . . . . . . . . . . Thermal . | . . . . . . . . . . . . . . . . . . . . Explosive . | . . . . . . . . . . . . . . . . . . . . Electromagnetic 5 | . . . . . . . . 5 . . . . . . . . . . . Robot Hit Streak 3 | . . 2 . . 3 . . . . . . . . . . . . . . Robot Miss Streak 4 | . . 4 . . . . . . . . . . . . . . . . . Penetration Max . | . . . . . . . . . . . . . . . . . . . . Secondary Targets 1 | . . 1 . . . . . . . . . . . . . . . . . Max Gunslinging Chain 1 | . . 1 . . . . . . . . . . . . . . . . . Shots Hit Robots 4 | . . 3 . . 1 . . . . . . . . . . . . . . Core Hits 6 | . . 2 . . 1 . . 2 . . . . . . . . . 1 . Critical Hits . | . . . . . . . . . . . . . . . . . . . . Critical Kills . | . . . . . . . . . . . . . . . . . . . . Critical Parts Destroyed . | . . . . . . . . . . . . . . . . . . . . Melee Attacks . | . . . . . . . . . . . . . . . . . . . . Impact . | . . . . . . . . . . . . . . . . . . . . Slashing . | . . . . . . . . . . . . . . . . . . . . Piercing . | . . . . . . . . . . . . . . . . . . . . Sneak Attacks . | . . . . . . . . . . . . . . . . . . . . Combat Hostiles . | . . . . . . . . . . . . . . . . . . . . Follow-up Attacks . | . . . . . . . . . . . . . . . . . . . . Damage Inflicted 52 | . . 25 . . 6 . . 20 . . . . . . . . . 1 . Guns 31 | . . 25 . . 6 . . . . . . . . . . . . . . Cannons . | . . . . . . . . . . . . . . . . . . . . Explosions . | . . . . . . . . . . . . . . . . . . . . Melee . | . . . . . . . . . . . . . . . . . . . . Ramming 21 | . . . . . . . . 20 . . . . . . . . . 1 . Kinetic 31 | . . 25 . . 6 . . . . . . . . . . . . . . Thermal . | . . . . . . . . . . . . . . . . . . . . Explosive . | . . . . . . . . . . . . . . . . . . . . Electromagnetic . | . . . . . . . . . . . . . . . . . . . . Impact . | . . . . . . . . . . . . . . . . . . . . Slashing . | . . . . . . . . . . . . . . . . . . . . Piercing . | . . . . . . . . . . . . . . . . . . . . Highest Corruption 8 | . . . . . . . . 1 1 1 . . . . . 1 . . 8 Average Corruption 1 | . . . . . . . . 1 1 1 . . . . . 1 . . 5 Corruption Purged . | . . . . . . . . . . . . . . . . . . . . Overload Shots . | . . . . . . . . . . . . . . . . . . . . Overflow Damage 5 | . . . . . . . . 5 . . . . . . . . . . . Projectiles . | . . . . . . . . . . . . . . . . . . . . Explosions 5 | . . . . . . . . 5 . . . . . . . . . . . Melee . | . . . . . . . . . . . . . . . . . . . . Knockbacks . | . . . . . . . . . . . . . . . . . . . . Impact . | . . . . . . . . . . . . . . . . . . . . Kinetic . | . . . . . . . . . . . . . . . . . . . . Secondary . | . . . . . . . . . . . . . . . . . . . . Self-Inflicted Damage 69 | . . . . . . . . 69 . . . . . . . . . . . Shots 2 | . . . . . . . . 2 . . . . . . . . . . . Rammed 6 | . . . . . . . . 5 . . . . . . . . . 1 . Targets Rammed 6 | . . . . . . . . 5 . . . . . . . . . 1 . Kicked . | . . . . . . . . . . . . . . . . . . . . Crushed . | . . . . . . . . . . . . . . . . . . . . Highest Temperature 307 | . . . . 8 . . . . . . . . . . . . 18 307 . Average Temperature 59 | . . . . 8 . . . . . . . . . . . . 11 61 . Received Heat Transfer 578 | . . . . 20 72 54 . 69 48 . 9 . . 21 . . 21 102 162 Siege Activations . | . . . . . . . . . . . . . . . . . . . . Robots Corrupted . | . . . . . . . . . . . . . . . . . . . . Combat Hostiles . | . . . . . . . . . . . . . . . . . . . . Parts Fried . | . . . . . . . . . . . . . . . . . . . . Impact Corruptions . | . . . . . . . . . . . . . . . . . . . . Robots Melted . | . . . . . . . . . . . . . . . . . . . . Combat Hostiles . | . . . . . . . . . . . . . . . . . . . . Parts Melted . | . . . . . . . . . . . . . . . . . . . . Heat Transferred . | . . . . . . . . . . . . . . . . . . . . Parts Sabotaged . | . . . . . . . . . . . . . . . . . . . . Parts Stolen 1 | . . . . . . . . . 1 . . . . . . . . . . Parts Stripped . | . . . . . . . . . . . . . . . . . . . . Power Chain Reactions . | . . . . . . . . . . . . . . . . . . . . Missiles Intercepted . | . . . . . . . . . . . . . . . . . . . . Alert | -11 -10 -10 -10 -9 -8 -8 -8 -6 -6 -6 -5 -4 -4 -4 -4 -3 -3 -3 -2 ------- Run | Scr Mat Min Exi Min Mat Sto Rec Fac Low Low Fac Fac Upp Upp Zhi Pro Res Tes Res Peak Influence 1630 | . . 65 . . 5 75 193 1128 . . 376 86 . . . . 198 1630 1590 Initial 1100 | . . . . . . . 28 980 . . 346 86 . . . . 23 111 1100 Average 441 | . . 7 . . . 22 89 1011 . . 325 86 . . . . 94 1592 1225 Maximum Alert Level 5 | . . . . . . . . 4 . . 1 . . . . . . 5 4 Low Security (%) 56 | 100 100 100 . 100 100 100 100 . . . 17 100 . . . . 100 . . Level 1 13 | . . . . . . . . . . . 82 . . . . . . . . Level 2 . | . . . . . . . . . . . . . . . . . . . . Level 3 8 | . . . . . . . . 98 . . . . . . . . . . . Level 4 15 | . . . . . . . . 1 . . . . . . . . . . 100 Level 5 . | . . . . . . . . . . . . . . . . . . . . High Security . | . . . . . . . . . . . . . . . . . . . . Max Security 6 | . . . . . . . . . . . . . . . . . . 99 . Squads Dispatched 16 | . . . . . 1 1 . . . . . . . 1 . . 1 6 6 Investigation 2 | . . . . . . . . . . . . . . . . . . . 2 Extermination 1 | . . . . . . . . . . . . . . . . . . . 1 Reinforcement 4 | . . . . . 1 1 . . . . . . . . . . 1 . 1 Assault 9 | . . . . . . . . . . . . . . 1 . . . 6 2 Garrison . | . . . . . . . . . . . . . . . . . . . . Intercept . | . . . . . . . . . . . . . . . . . . . . Construction Impeded . | . . . . . . . . . . . . . . . . . . . . Haulers Reinforced . | . . . . . . . . . . . . . . . . . . . . Stealth | -11 -10 -10 -10 -9 -8 -8 -8 -6 -6 -6 -5 -4 -4 -4 -4 -3 -3 -3 -2 --------- Run | Scr Mat Min Exi Min Mat Sto Rec Fac Low Low Fac Fac Upp Upp Zhi Pro Res Tes Res Distress Signals 6 | . . . . . . 1 . . . . . . . . . . . 1 4 Communications Jammed . | . . . . . . . . . . . . . . . . . . . . Distress Signals . | . . . . . . . . . . . . . . . . . . . . Times Spotted 215 | . 1 3 . 20 13 7 12 9 2 . 1 . 12 12 . 4 11 42 66 Peak Tracking Total 36 | . 1 3 . 18 15 11 6 4 2 . 2 . 10 11 . 3 9 36 18 Tactical Retreats 23 | . . . . 2 . . . 3 . . 1 . 1 3 . 1 1 1 10 Traps | -11 -10 -10 -10 -9 -8 -8 -8 -6 -6 -6 -5 -4 -4 -4 -4 -3 -3 -3 -2 ------- Run | Scr Mat Min Exi Min Mat Sto Rec Fac Low Low Fac Fac Upp Upp Zhi Pro Res Tes Res Traps Triggered 4 | . 1 . . . . . . . . . . . . . . . . 1 2 Indirectly . | . . . . . . . . . . . . . . . . . . . . Trap Hack Attempts . | . . . . . . . . . . . . . . . . . . . . Triggered . | . . . . . . . . . . . . . . . . . . . . Disarmed . | . . . . . . . . . . . . . . . . . . . . Reprogrammed . | . . . . . . . . . . . . . . . . . . . . Reused . | . . . . . . . . . . . . . . . . . . . . Traps Extracted . | . . . . . . . . . . . . . . . . . . . . Installed . | . . . . . . . . . . . . . . . . . . . . Triggered . | . . . . . . . . . . . . . . . . . . . . Machines | -11 -10 -10 -10 -9 -8 -8 -8 -6 -6 -6 -5 -4 -4 -4 -4 -3 -3 -3 -2 ---------- Run | Scr Mat Min Exi Min Mat Sto Rec Fac Low Low Fac Fac Upp Upp Zhi Pro Res Tes Res Machines Disabled 3 | . . . . . . . . 3 . . . . . . . . . . . Max in Single Turn 3 | . . . . . . . . 3 . . . . . . . . . . . Machines Sabotaged . | . . . . . . . . . . . . . . . . . . . . Garrisons Compromised . | . . . . . . . . . . . . . . . . . . . . Overloaded Fab Kills . | . . . . . . . . . . . . . . . . . . . . Fab Network Shutdowns . | . . . . . . . . . . . . . . . . . . . . Hacking | -11 -10 -10 -10 -9 -8 -8 -8 -6 -6 -6 -5 -4 -4 -4 -4 -3 -3 -3 -2 --------- Run | Scr Mat Min Exi Min Mat Sto Rec Fac Low Low Fac Fac Upp Upp Zhi Pro Res Tes Res Machines Accessed 13 | . . . . . 1 2 3 . . . 1 . . . 4 . 1 . 1 Terminals 9 | . . . . . 1 2 3 . . . 1 . . . . . 1 . 1 Fabricators . | . . . . . . . . . . . . . . . . . . . . Repair Stations . | . . . . . . . . . . . . . . . . . . . . Recycling Units . | . . . . . . . . . . . . . . . . . . . . Scanalyzers . | . . . . . . . . . . . . . . . . . . . . Garrison Access . | . . . . . . . . . . . . . . . . . . . . Total Hacks 35 | . . . . . 3 3 8 . . . 1 . . . 17 . 1 . 2 Successful 25 | . . . . . 1 2 4 . . . . . . . 17 . 1 . . Failed 10 | . . . . . 2 1 4 . . . 1 . . . . . . . 2 Catastrophic 2 | . . . . . . . . . . . . . . . . . . . 2 Database Lockouts . | . . . . . . . . . . . . . . . . . . . . Manual 8 | . . . 1 . . 3 . . . . 1 . . . . . 1 . 2 Terminals 18 | . . . . . 3 3 8 . . . 1 . . . . . 1 . 2 Fabricators . | . . . . . . . . . . . . . . . . . . . . Repair Stations . | . . . . . . . . . . . . . . . . . . . . Recycling Units . | . . . . . . . . . . . . . . . . . . . . Scanalyzers . | . . . . . . . . . . . . . . . . . . . . Garrison Access . | . . . . . . . . . . . . . . . . . . . . Terminal Hacks 25 | . . . . . 1 2 4 . . . . . . . 17 . 1 . . Record 8 | . . . . . . . 3 . . . . . . . 5 . . . . Part Schematic 4 | . . . . . . . . . . . . . . . 4 . . . . Robot Analysis 5 | . . . . . 1 . . . . . . . . . 4 . . . . Prototype ID Bank 4 | . . . . . . . . . . . . . . . 4 . . . . Open Door 1 | . . . . . . 1 . . . . . . . . . . . . . Branch Access Points 2 | . . . . . . 1 . . . . . . . . . . 1 . . Alert Level 1 | . . . . . . . 1 . . . . . . . . . . . . Fabricator Hacks . | . . . . . . . . . . . . . . . . . . . . Repair Station Hacks . | . . . . . . . . . . . . . . . . . . . . Recycling Unit Hacks . | . . . . . . . . . . . . . . . . . . . . Scanalyzer . | . . . . . . . . . . . . . . . . . . . . Garrison Access Hacks . | . . . . . . . . . . . . . . . . . . . . Unauthorized Hacks . | . . . . . . . . . . . . . . . . . . . . Terminals . | . . . . . . . . . . . . . . . . . . . . Fabricators . | . . . . . . . . . . . . . . . . . . . . Repair Stations . | . . . . . . . . . . . . . . . . . . . . Recycling Units . | . . . . . . . . . . . . . . . . . . . . Scanalyzers . | . . . . . . . . . . . . . . . . . . . . Garrison Access . | . . . . . . . . . . . . . . . . . . . . Data Cores Recovered . | . . . . . . . . . . . . . . . . . . . . Used . | . . . . . . . . . . . . . . . . . . . . Hacking Detections 6 | . . . . . . 2 2 . . . 1 . . . . . . . 1 Full Trace Events 3 | . . . . . . . 2 . . . . . . . . . . . 1 Feedback Events . | . . . . . . . . . . . . . . . . . . . . Feedback Blocked . | . . . . . . . . . . . . . . . . . . . . Robot Schematics Acquired . | . . . . . . . . . . . . . . . . . . . . Robots Built . | . . . . . . . . . . . . . . . . . . . . Matter . | . . . . . . . . . . . . . . . . . . . . Time . | . . . . . . . . . . . . . . . . . . . . Total Robot Build Rating . | . . . . . . . . . . . . . . . . . . . . Part Schematics Acquired 4 | . . . . . . . . . . . . . . . 4 . . . . Parts Built . | . . . . . . . . . . . . . . . . . . . . Matter . | . . . . . . . . . . . . . . . . . . . . Time . | . . . . . . . . . . . . . . . . . . . . Total Part Build Rating . | . . . . . . . . . . . . . . . . . . . . Parts Repaired . | . . . . . . . . . . . . . . . . . . . . Time . | . . . . . . . . . . . . . . . . . . . . Parts Recycled . | . . . . . . . . . . . . . . . . . . . . Recycled Matter . | . . . . . . . . . . . . . . . . . . . . Retrieved Matter . | . . . . . . . . . . . . . . . . . . . . Retrieved Components . | . . . . . . . . . . . . . . . . . . . . Parts Scanalyzed . | . . . . . . . . . . . . . . . . . . . . Part Schematics Acquired . | . . . . . . . . . . . . . . . . . . . . Parts Damaged . | . . . . . . . . . . . . . . . . . . . . Bothacking | -11 -10 -10 -10 -9 -8 -8 -8 -6 -6 -6 -5 -4 -4 -4 -4 -3 -3 -3 -2 ------------ Run | Scr Mat Min Exi Min Mat Sto Rec Fac Low Low Fac Fac Upp Upp Zhi Pro Res Tes Res Used RIF Installer . | . . . . . . . . . . . . . . . . . . . . Robots Hacked . | . . . . . . . . . . . . . . . . . . . . Non-combat . | . . . . . . . . . . . . . . . . . . . . Combat . | . . . . . . . . . . . . . . . . . . . . Robot Hacks Applied . | . . . . . . . . . . . . . . . . . . . . Relay Couplers Released . | . . . . . . . . . . . . . . . . . . . . Robots Rewired . | . . . . . . . . . . . . . . . . . . . . Allies Hacked . | . . . . . . . . . . . . . . . . . . . . Hacks Repelled . | . . . . . . . . . . . . . . . . . . . . Allies | -11 -10 -10 -10 -9 -8 -8 -8 -6 -6 -6 -5 -4 -4 -4 -4 -3 -3 -3 -2 -------- Run | Scr Mat Min Exi Min Mat Sto Rec Fac Low Low Fac Fac Upp Upp Zhi Pro Res Tes Res Total Allies . | . . . . . . . . . . . . . . . . . . . . Largest Group . | . . . . . . . . . . . . . . . . . . . . Highest-Rated Group . | . . . . . . . . . . . . . . . . . . . . Highest-Rated Ally . | . . . . . . . . . . . . . . . . . . . . Total Orders . | . . . . . . . . . . . . . . . . . . . . Ally Attacks . | . . . . . . . . . . . . . . . . . . . . Total Damage . | . . . . . . . . . . . . . . . . . . . . Kills . | . . . . . . . . . . . . . . . . . . . . Allies Corrupted . | . . . . . . . . . . . . . . . . . . . . Allies Melted . | . . . . . . . . . . . . . . . . . . . . Intel | -11 -10 -10 -10 -9 -8 -8 -8 -6 -6 -6 -5 -4 -4 -4 -4 -3 -3 -3 -2 ------- Run | Scr Mat Min Exi Min Mat Sto Rec Fac Low Low Fac Fac Upp Upp Zhi Pro Res Tes Res Robot Analysis Total 5 | . . . . . 1 . . . . . . . . . 4 . . . . Derelict Logs Recovered 6 | . . 1 . 2 . . . . 2 . . . 1 . . . . . . Drone Launches . | . . . . . . . . . . . . . . . . . . . . Drone Recoveries . | . . . . . . . . . . . . . . . . . . . . Exploration | -11 -10 -10 -10 -9 -8 -8 -8 -6 -6 -6 -5 -4 -4 -4 -4 -3 -3 -3 -2 ------------- Run | Scr Mat Min Exi Min Mat Sto Rec Fac Low Low Fac Fac Upp Upp Zhi Pro Res Tes Res Turns Passed 3685 | 45 165 285 167 131 500 63 177 259 119 15 486 19 125 91 59 108 226 197 448 Spaces Moved 7339 | 41 181 299 443 350 116 156 499 610 237 27 937 60 403 265 152 422 532 598 1011 Core 668 | 16 . . . . 20 5 . 163 237 27 19 . . . . . . . 181 Treads . | . . . . . . . . . . . . . . . . . . . . Legs . | . . . . . . . . . . . . . . . . . . . . Wheels 476 | 25 181 270 . . . . . . . . . . . . . . . . . Hover . | . . . . . . . . . . . . . . . . . . . . Flight 6195 | . . 29 443 350 96 151 499 447 . . 918 60 403 265 152 422 532 598 830 Fastest Speed 19 | 50 90 37 37 37 37 34 31 31 50 50 31 31 31 31 25 25 22 19 24 Average Speed 36 | 76 90 85 37 37 40 34 31 37 50 50 35 31 31 33 33 25 25 22 31 Slowest Speed 280 | 100 90 280 37 37 100 50 34 120 50 50 50 31 31 37 37 27 27 34 50 Overloaded Moves . | . . . . . . . . . . . . . . . . . . . . Propulsion Burnouts . | . . . . . . . . . . . . . . . . . . . . Robots Hopped 68 | . . . . 10 . 3 4 . . . 13 . 3 . . . 5 18 12 Cave-ins Triggered . | . . . . . . . . . . . . . . . . . . . . Teleports 1 | . . . . . . . . . . . . . . . . . . . 1 Exploration Rate (%) 43 | 4 43 69 90 69 12 26 89 13 55 6 28 2 61 57 61 74 15 66 31 Regions Visited 19 Branch Regions 12 Pre-discovered Areas 4 | . . 1 . . . . . . . . . . . . 3 . . . . Known Exits Taken 9 | . . . . . . 1 . . . . 1 1 1 1 1 1 1 1 . Unknown Exits Taken 10 | 1 1 1 1 1 1 . 1 1 1 1 . . . . . . . . . Scrap Searched 8 | . . 1 . 2 . . . . . 1 . . 1 . . 3 . . . Spaces Dug 26 | . . . . . . . . 26 . . . . . . . . . . . Terrain Destroyed 26 | . . . . . . . . 26 . . . . . . . . . . . Melee . | . . . . . . . . . . . . . . . . . . . . Projectile . | . . . . . . . . . . . . . . . . . . . . AOE 26 | . . . . . . . . 26 . . . . . . . . . . . Terrain Rammed . | . . . . . . . . . . . . . . . . . . . . Walls Destroyed . | . . . . . . . . . . . . . . . . . . . . Machines Disabled . | . . . . . . . . . . . . . . . . . . . . Actions | -11 -10 -10 -10 -9 -8 -8 -8 -6 -6 -6 -5 -4 -4 -4 -4 -3 -3 -3 -2 --------- Run | Scr Mat Min Exi Min Mat Sto Rec Fac Low Low Fac Fac Upp Upp Zhi Pro Res Tes Res Total 8246 | 53 182 319 445 340 569 161 514 634 236 27 1075 59 399 265 158 421 615 641 1133 Wait 876 | . . 2 . . 446 . 16 8 . . 139 . . . . . 85 52 128 Move 7207 | 40 180 298 442 334 115 150 490 609 236 26 915 59 397 264 151 421 522 567 991 Hop 46 | . . . . 5 . 2 4 . . . 8 . 2 . . . 4 13 8 Pick Up 35 | 6 1 7 1 . 3 4 1 1 . . 2 . . . 2 . 1 4 2 Fast Attach 22 | 1 . 1 1 . . 1 1 1 . 1 9 . . . 3 . 2 . 1 Attach 25 | 5 1 1 . 1 . 3 2 1 . . 1 . . 1 2 . 1 4 2 Detach 2 | . . . . . . . . 2 . . . . . . . . . . . Swap 2 | 1 . 1 . . . . . . . . . . . . . . . . . Drop 15 | . . 4 1 . 4 1 . 2 . . 1 . . . . . . 1 1 Fire 11 | . . 5 . . 1 . . 5 . . . . . . . . . . . Melee . | . . . . . . . . . . . . . . . . . . . . Ram 5 | . . . . . . . . 5 . . . . . . . . . . . Kick . | . . . . . . . . . . . . . . . . . . . . Crush . | . . . . . . . . . . . . . . . . . . . . Escape Stasis . | . . . . . . . . . . . . . . . . . . . . Rewire . | . . . . . . . . . . . . . . . . . . . . Trap . | . . . . . . . . . . . . . . . . . . . . Miscellaneous . | . . . . . . . . . . . . . . . . . . . . Route ------- -11/Scrapyard -10/Materials (discovered 2 exits: [*Mat] / [*Min]) -10/Mines (discovered 2 exits: [*Mat] / *Exi) -10/Exiles -9/Mines -8/Materials -8/Storage -8/Recycling -6/Factory -6/Lower Caves -6/Lower Caves -5/Factory (discovered 2 exits: *Fac / *Ext) -4/Factory -4/Upper Caves -4/Upper Caves (discovered 2 exits: *Res / *Zhi) -4/Zhirov -3/Proximity Caves -3/Research (discovered 3 exits: Res / *Tes x2) -3/Testing -2/Research History --------- Turn | Location | Event 34 | -11/Scrapyard | Discovered new exit (range 14) 46 | -11/Scrapyard | Entered Materials 127 | -10/Materials | Discovered new exit (range 5) 203 | -10/Materials | Discovered new exit (range 9) 211 | -10/Materials | Entered Mines 225 | -10/Mines | Learned location of Storage (-8) 256 | -10/Mines | Found a hidden stash of uninstalled traps 300 | -10/Mines | Build established: Mutant 370 | -10/Mines | Discovered new exit (range 9) 495 | -10/Mines | Deemed a non-threat by the Exiles lab entrance 495 | -10/Mines | Discovered new exit (range 5) 496 | -10/Mines | Entered Exiles 505 | -10/Exiles | Met 8R-AWN 515 | -10/Exiles | Met EX-HEX 540 | -10/Exiles | Met EX-DEC 546 | -10/Exiles | Visited The Gauntlet 611 | -10/Exiles | Met EX-BIN 615 | -10/Exiles | Aligned with FarCom system 616 | -10/Exiles | Given EX-Vault access code 625 | -10/Exiles | Opened EX-Vault 627 | -10/Exiles | Found Prototype Processor 627 | -10/Exiles | Identified Modified TNC 636 | -10/Exiles | Warned to stay clear of 0b10 Research branches 659 | -10/Exiles | Discovered new exit (range 10) 663 | -10/Exiles | Left Exiles lab with Modified TNC 663 | -10/Exiles | Entered Mines 664 | -9/Mines | Assembled infested the area 669 | -9/Mines | Assisted by a Guerilla fighting off Assembled 697 | -9/Mines | Learned Materials terminal intel 726 | -9/Mines | Learned Materials stockpile data 737 | -9/Mines | Discovered new exit (range 11) 794 | -9/Mines | Entered Materials 794 | -8/Materials | Evolved 4 slots: Power x1, Propulsion x2, Utility x1 796 | -8/Materials | Loaded intel: 12 terminal locations 951 | -8/Materials | Build established: Scout 1274 | -8/Materials | Discovered new exit (range 16) 1294 | -8/Materials | Entered Storage 1295 | -8/Storage | Core integrity fell below 50% 1313 | -8/Storage | Lost 4 parts (1p2n1w) 1338 | -8/Storage | Identified exit to Recycling 1356 | -8/Storage | Used back door to open Recycling access 1357 | -8/Storage | Entered Recycling 1423 | -8/Recycling | Spotter reported a threat 1424 | -8/Recycling | Spotter reported a threat 1429 | -8/Recycling | Spotter reported a threat 1451 | -8/Recycling | Spotter reported a threat 1476 | -8/Recycling | Spotter reported a threat 1477 | -8/Recycling | Spotter reported a threat 1482 | -8/Recycling | Spotter reported a threat 1496 | -8/Recycling | Spotter reported a threat 1506 | -8/Recycling | Spotter reported a threat 1516 | -8/Recycling | Spotter reported a threat 1519 | -8/Recycling | Spotter reported a threat 1524 | -8/Recycling | Spotter reported a threat 1528 | -8/Recycling | Discovered new exit (range 14) 1530 | -8/Recycling | Spotter reported a threat 1534 | -8/Recycling | Entered Factory 1534 | -6/Factory | Evolved 4 slots: Propulsion x2, Utility x2 1614 | -6/Factory | Spotted B-75 Beast 1729 | -6/Factory | Lost 4 parts (4n) 1783 | -6/Factory | Discovered new exit (range 15) 1793 | -6/Factory | Entered Lower Caves 1798 | -6/Lower Caves | Learned Factory emergency access door positions 1895 | -6/Lower Caves | Attracted the attention of an 0b10 checkpoint 1903 | -6/Lower Caves | Learned Factory trap positions 1909 | -6/Lower Caves | Discovered new exit (range 5) 1912 | -6/Lower Caves | Entered another Lower Caves area 1912 | -6/Lower Caves | Discovered new exit (range 9) 1927 | -6/Lower Caves | Entered Factory 1927 | -5/Factory | Evolved 2 slots: Power x1, Propulsion x1 1928 | -5/Factory | Loaded intel: 87 trap records 2196 | -5/Factory | Build established: Mutant 2340 | -5/Factory | Discovered new exit (range 16) 2345 | -5/Factory | Identified exit to Extension 2397 | -5/Factory | Discovered new exit (range 15) 2401 | -5/Factory | Identified exit to Factory 2413 | -5/Factory | Entered another Factory area 2413 | -4/Factory | Evolved 2 slots: Propulsion x2 2426 | -4/Factory | Discovered new exit (range 11) 2429 | -4/Factory | Identified exit to Upper Caves 2432 | -4/Factory | Entered Upper Caves 2497 | -4/Upper Caves | Learned 4 Research zone layouts 2555 | -4/Upper Caves | Discovered new exit (range 10) 2557 | -4/Upper Caves | Identified exit to Upper Caves 2557 | -4/Upper Caves | Entered another Upper Caves area 2561 | -4/Upper Caves | Attracted the attention of an 0b10 outpost 2564 | -4/Upper Caves | Discovered new exit (range 14) 2608 | -4/Upper Caves | Spotted B-86 Titan 2615 | -4/Upper Caves | Lost 3 parts (1p1n1u) 2645 | -4/Upper Caves | Discovered new exit (range 8) 2647 | -4/Upper Caves | Identified exit to Zhirov 2648 | -4/Upper Caves | Entered Zhirov 2648 | -4/Zhirov | Discovered new exit (range 3) 2655 | -4/Zhirov | Met Zhirov 2667 | -4/Zhirov | Learned location of Quarantine (-2) 2667 | -4/Zhirov | Learned location of Testing (-3) 2667 | -4/Zhirov | Learned location of Command (-1) 2671 | -4/Zhirov | Zhirov requested help retrieving the SGEMP Prototype 2680 | -4/Zhirov | Found Alien Artifact 2707 | -4/Zhirov | Identified exit to Proximity Caves 2707 | -4/Zhirov | Entered Proximity Caves 2813 | -3/Proximity Caves | Discovered new exit (range 6) 2814 | -3/Proximity Caves | Identified exit to Research 2815 | -3/Proximity Caves | Entered Research 2815 | -3/Research | Evolved 2 slots: Power x1, Propulsion x1 2816 | -3/Research | Identified exit to Research 2887 | -3/Research | Identified exit to Testing 2995 | -3/Research | Build established: Hacker-Sprinter 3041 | -3/Research | Entered Testing 3042 | -3/Testing | Maximum security lockdown engaged 3194 | -3/Testing | Spotted Striker 3195 | -3/Testing | Spotted Striker 3198 | -3/Testing | Spotted Alpha 7 3200 | -3/Testing | Stole the SGEMP Prototype 3236 | -3/Testing | Discovered exit to Research (range 8) 3238 | -3/Testing | Entered Research 3238 | -2/Research | Evolved 2 slots: Propulsion x1, Utility x1 3268 | -2/Research | Lost 7 parts (4p2n1u) 3490 | -2/Research | Build established: Sprinter 3513 | -2/Research | Spotted B-90 Cyclops 3522 | -2/Research | First assault squad dispatched 3522 | -2/Research | Spotted B-90 Cyclops 3568 | -2/Research | Lost 5 parts (4n1u) 3612 | -2/Research | Core integrity fell below 50% 3614 | -2/Research | Spotted B-90 Cyclops 3647 | -2/Research | Identified Transdimensional Reconstructor 3647 | -2/Research | Warped through subspace 3659 | -2/Research | Core integrity fell below 20% 3686 | -2/Research | Destroyed by Y-72 Warden with Quantum Rifle Last Messages --------------- K-01 Serf cleans the Graviton Restrictor. W-44 Eye sends out distress signal. U-05 Engineer lays Concrete. Imp. Diametric Drive destroyed. W-44 Eye sends out distress signal. Penetrated by Slug. Slug penetrates Wall. Penetrated by Slug. Identified Transdimensional Reconstructor. Warped through subspace. Penetrated by Slug. W-44 Eye sends out distress signal. Triggered EM Surge Trap. The floor emits a surge of raw power. System corrupted (+5). K-01 Serf destroyed. Slug penetrates Wall. Door malfunctions. Penetrated by Slug. Slug penetrates Wall. Map ----- +----------------------------------------------------+ | ??????????????????????????????????????????????# | | ??????????????????????????????????????????????# | | ??????????????????????????????????????????????# " | | ??????????????????????????????????????????????# " | | ??????????????????????????????????????????????# | | ??????????????????????????????????????????????# | | ??????????????????????????????????????????????### | | ????????????????????????????????????????????????# | | ????????????????????????????????????????????????# | | ????????????????????????????????????????????????# | | ????????????????????????????????????????????????# | | ???????????????????s????????????????????????????# | | ???????????????????s????????????o?????? #??# | | ????????????????????s?s???????????????? #??# | | ??????????????????????#####???????????"""" #??# | | ?????????????????????? #??????? o""T"" #?## | | ??????????????????????? #??????? ### | | ??????????????????????? #??????? # | | ???????????????????????? #???????? # | | ???????????????????????? #???????? !! #?# | | ?????????????????########+###????? !! #?# | | ?????????????????# # #?#### ! #?# | | ?????????????????# + ### #?# | | ?????????????????# # Y p p #?# | | ?????????????????# # A### h= #?# | | ?????????????????# ?# @ #?# ######### #?# | | ?????????????????# ! ?### ###?# #???????# #?# | | ?????????????????# ????# #???#+######### #?# | | ?????????????????###????# #???# ph | # #?# | | ????????????????????????#R#???# g = # ### | | ???????????????????????? ???# g # | | ???????????????????????? ???# """"" !# | | ???????????????????????? ""???# """"" # | | ???????????????g???????? """??# """"" / | | ???????????????????????? """??# # ##### | | ???????????????????????? ??# ! # #???? | | ???????????????????????? ?########### #???? | | ???????????????????????? """ ????# #???? | | ??????????????????????? """?????# #???? | | ???????????????? ?????? ????????# = #???? | | ???????????????? ?????? ????????# %= #???? | | ???????????????? ?????? ????????# ########???? | | ???????????????? ??????##????????# #??????????? | | ???????????????? ????????????????# #??????????? | | ???????????????? ????????????????# #??????????? | | ???????????????? ????????????????# #??????????? | | ???????????????? ????????????????# #??????????? | | ???????????????? ????????????????+ #??????????? | | ???????????????? ????????????????# #??????????? | | ???????????????# #???????????????# #??????????? | +----------------------------------------------------+ Best States ------------- Heat Dissipation 49 Energy Generation 61 Energy Capacity 755 Matter Stores 300 Matter Capacity 300 Sight Range 22 Terrain Scan Range 16 Terrain Scan Density 10 Power Amplification 30 Additional Mass Support 12 Evasion (%) 65 Defensive Hacking 24 Item Schematics ----------------- Assault Drone Bay | -4/Zhirov | Free Exp. Optical Array | -4/Zhirov | Free Imp. Arc Thrower | -4/Zhirov | Free Exp. Heat Sink | -4/Zhirov | Free Robot Schematics ------------------ None Fabricated ------------ Nothing Alien Tech Used ----------------- Transdimensional Reconstructor Achievements -------------- None Challenges ------------ None Game ------ Seed ContainmentFissionProtection Manual? 0 Play Time 01:20:58 Cumulative 115.2 hours Start 2021.05.16 @ 00:20:51 End 2021.05.16 @ 01:44:53 Sessions 1 Manual Loads 0 Difficulty Rogue Special Mode None Game No. 190 Rogue 188 Adventurer 2 Explorer 0 Win Type - Total 1 Types 1/0/0/0/0/0/0/0/0 Lore% 55 Gallery% 52 Achievement% 44 Wizard Run 0 Options --------- ASCII 0 Keyboard 0 Movement Mouse Keybinds 0 Fullscreen 1 Font 18/SmallcapsGlow Map View 76x50 Tactical HUD 0 Map Filters NONE Filters NONE Steam 1 RUN: 3208726c-acce-4af9-8257-ebfa08919e65